bitfinex/quotes_BTCUSD_20241014
["timestamp","ask_amount","ask_price","bid_price","bid_amount"]
[1728864002720,0.001001,62987.0,62986.0,0.09264]
[1728864002950,0.002001,62987.0,62986.0,0.09264]
[1728864003172,0.001001,62987.0,62986.0,0.09264]
[1728864003414,0.001001,62987.0,62986.0,0.09964]
[1728864004322,1e-06,62987.0,62986.0,0.26086401]
[1728864004549,1e-06,62987.0,62986.0,0.45946847]
[1728864004786,1e-06,62987.0,62986.0,0.4562932]
[1728864005005,1e-06,62987.0,62986.0,0.34446401]
[1728864005436,1e-06,62987.0,62986.0,0.33646401]
[1728864005661,1e-06,62987.0,62986.0,0.34446401]
[1728864006099,1e-06,62987.0,62986.0,0.33646401]
[1728864007657,1e-06,62987.0,62986.0,0.33746401]
[1728864008096,1e-06,62987.0,62986.0,0.34446401]
[1728864008322,1e-06,62987.0,62986.0,0.33746401]
[1728864008536,1e-06,62987.0,62986.0,0.32946401]
[1728864008751,1e-06,62987.0,62986.0,0.33946401]
[1728864008984,1e-06,62987.0,62986.0,0.60769967]
[1728864009209,1e-06,62987.0,62986.0,0.69578346]
[1728864009448,1e-06,62987.0,62986.0,0.68478346]
[1728864009917,0.0009489,63001.0,62992.0,0.03183]
[1728864010150,0.0009489,63001.0,62991.0,0.005]
[1728864010151,0.0009489,63001.0,62997.0,0.11182919]
[1728864010413,0.0075,63005.0,63000.0,0.11182919]
[1728864010626,0.0075,63005.0,63000.0,0.04767103]
[1728864011509,0.0075,63005.0,63000.0,0.05367103]
[1728864011724,0.0075,63005.0,63000.0,0.06167103]
[1728864012157,0.0075,63005.0,63001.0,0.16122401]
[1728864012596,0.0773,63004.0,63001.0,0.16122401]
[1728864012821,0.0773,63004.0,63000.0,0.015]
[1728864013045,0.22762919,63001.0,63000.0,0.015]
[1728864013281,0.4661532,63001.0,63000.0,0.015]
[1728864013498,0.4681532,63001.0,63000.0,0.015]
[1728864013953,0.4681532,63001.0,63000.0,0.008]
[1728864014188,0.4681532,63001.0,62991.0,0.23772356]
[1728864014189,0.002,63000.0,62991.0,0.23772356]
[1728864014422,0.11182919,62992.0,62991.0,0.23772356]
[1728864014654,0.13482919,62992.0,62991.0,0.23772356]
[1728864014919,0.13482919,62992.0,62986.0,0.00164]
[1728864015574,0.13482919,62992.0,62991.0,0.001]
[1728864016022,0.13482919,62992.0,62986.0,0.00164]
[1728864016285,0.13482919,62992.0,62986.0,0.00264]
[1728864016738,0.11182919,62995.0,62986.0,0.00264]
[1728864016956,0.023,62994.0,62986.0,0.00264]
[1728864017401,0.023,62994.0,62991.0,0.001]
[1728864017898,0.001,62995.0,62991.0,0.16422401]
[1728864018120,0.10216824,62998.0,62991.0,0.16122401]
[1728864018335,0.10216824,62998.0,62992.0,0.01122256]
[1728864018336,0.10166824,62998.0,62992.0,0.01122256]
[1728864018549,0.002,62994.0,62992.0,0.01122256]
[1728864018785,0.001,62994.0,62992.0,0.01122256]
[1728864019011,0.10166824,62998.0,62992.0,0.01122256]
[1728864019224,0.001,62995.0,62992.0,0.01122256]
[1728864020327,0.10266824,62998.0,62992.0,0.01122256]
[1728864020752,0.10266824,62998.0,62992.0,0.01822256]
[1728864020981,0.10266824,62998.0,62992.0,0.01122256]
[1728864021211,0.10166824,62998.0,62992.0,0.01122256]
[1728864021452,0.00082,62994.0,62992.0,0.01722256]
[1728864021663,0.00082,62994.0,62992.0,0.01522256]
[1728864021875,0.00082,62994.0,62992.0,0.01822256]
[1728864022108,0.00082,62994.0,62992.0,0.01122256]
[1728864022360,0.00082,62994.0,62992.0,0.01522256]
[1728864022863,0.00082,62994.0,62992.0,0.01122256]
[1728864023294,0.00082,62994.0,62992.0,0.01922256]
[1728864023521,0.00082,62994.0,62992.0,0.02222256]
[1728864023972,0.00082,62994.0,62992.0,0.01922256]
[1728864024185,0.00082,62994.0,62992.0,0.02622256]
[1728864024842,0.23772356,62993.0,62992.0,0.02622256]
[1728864025068,0.11182919,62993.0,62992.0,0.02622256]
[1728864025353,0.11182919,62993.0,62992.0,0.015]
[1728864025563,0.13482919,62993.0,62992.0,0.015]
[1728864025782,0.13482919,62993.0,62992.0,0.007]
[1728864025994,0.18890509,62993.0,62992.0,0.016]
[1728864027089,0.19090509,62993.0,62992.0,0.009]
[1728864027315,0.18890509,62993.0,62992.0,0.009]
[1728864027551,0.18890509,62993.0,62992.0,0.008]
[1728864027773,0.19090509,62993.0,62992.0,0.004]
[1728864027989,0.27690509,62993.0,62992.0,0.004]
[1728864028204,0.002,62988.0,62987.0,0.00082885]
[1728864028414,0.26990509,62988.0,62987.0,0.00082885]
[1728864028655,0.27290509,62988.0,62987.0,0.01211432]
[1728864028841,0.34534978,62988.0,62987.0,0.01211432]
[1728864029481,0.34534978,62988.0,62987.0,0.01611432]
[1728864029705,0.34534978,62988.0,62987.0,0.00482885]
[1728864030173,0.86997888,62988.0,62987.0,0.00482885]
[1728864030394,0.9839425,62988.0,62987.0,0.00482885]
[1728864030611,0.9839425,62988.0,62987.0,0.00682885]
[1728864030831,1.12243925,62988.0,62987.0,0.00482885]
[1728864031261,1.12243925,62988.0,62987.0,0.00082885]
[1728864031476,1.12243925,62988.0,62987.0,0.00682885]
[1728864031729,1.12243925,62988.0,62987.0,0.00482885]
[1728864031943,1.12443925,62988.0,62987.0,0.00182885]
[1728864032155,1.12243925,62988.0,62987.0,0.00182885]
[1728864032397,0.96706954,62988.0,62987.0,0.00182885]
[1728864032852,0.96643824,62988.0,62987.0,0.00182885]
[1728864033310,1.13234333,62988.0,62987.0,0.00182885]
[1728864033754,1.14116333,62988.0,62987.0,0.00282885]
[1728864033987,1.32740835,62988.0,62987.0,0.00282885]
[1728864034230,1.32740835,62988.0,62986.0,0.00164]
[1728864034231,0.460162,62987.0,62986.0,0.00164]
[1728864034429,0.79143515,62987.0,62986.0,0.00164]
[1728864034651,0.62607809,62983.0,62982.0,0.00164]
[1728864034864,0.95735124,62983.0,62982.0,0.00164]
[1728864035579,0.79144615,62983.0,62982.0,0.00164]
[1728864035804,0.95735124,62983.0,62982.0,0.00164]
[1728864036683,0.95735124,62983.0,62982.0,0.00264]
[1728864036684,0.96035124,62983.0,62982.0,0.00264]
[1728864036944,1.13372095,62983.0,62982.0,0.00364]
[1728864037167,1.12172095,62983.0,62982.0,0.00264]
[1728864037381,1.24044642,62983.0,62982.0,0.00264]
[1728864037589,1.25444642,62983.0,62982.0,0.00364]
[1728864037805,1.24044694,62983.0,62982.0,0.00264]
[1728864038038,1.23744694,62983.0,62982.0,0.00164]
[1728864038294,1.26544096,62983.0,62982.0,0.00364]
[1728864038512,1.14672095,62983.0,62982.0,0.00264]
[1728864038732,1.26544096,62983.0,62982.0,0.00264]
[1728864039164,1.27744096,62983.0,62982.0,0.00364]
[1728864039385,1.15872095,62983.0,62982.0,0.00364]
[1728864039639,1.15872095,62983.0,62982.0,0.00264]
[1728864039640,1.24164971,62983.0,62982.0,0.00264]
[1728864039862,0.028,62983.0,62982.0,0.161415]
[1728864040077,0.02569531,62988.0,62987.0,0.158762]
[1728864040518,0.02569531,62988.0,62987.0,0.57840326]
[1728864040519,0.00082,62988.0,62987.0,0.57840326]
[1728864040741,0.00082,62988.0,62987.0,0.5642911]
[1728864040976,0.00082,62988.0,62987.0,0.41349848]
[1728864041194,0.00082,62988.0,62987.0,0.33509848]
[1728864041631,0.00082,62988.0,62987.0,0.17387447]
[1728864041632,0.00182,62988.0,62987.0,0.17387447]
[1728864041876,0.00082,62988.0,62987.0,0.17387447]
[1728864042333,0.00082,62988.0,62987.0,0.17987447]
[1728864042334,0.00182,62988.0,62987.0,0.17987447]
[1728864042761,0.00182,62988.0,62987.0,0.17387447]
[1728864042762,0.00082,62988.0,62987.0,0.17387447]
[1728864042977,0.00182,62988.0,62987.0,0.17987447]
[1728864043195,0.00282,62988.0,62987.0,0.19087447]
[1728864043408,0.00282,62988.0,62987.0,0.17987447]
[1728864043833,0.00282,62988.0,62987.0,0.18187447]
[1728864044041,0.00182,62988.0,62987.0,0.17987447]
[1728864044253,0.00182,62988.0,62987.0,0.18587447]
[1728864044254,0.00282,62988.0,62987.0,0.18587447]
[1728864044677,0.00282,62988.0,62987.0,0.17987447]
[1728864044678,0.00182,62988.0,62987.0,0.17987447]
[1728864045094,0.00182,62988.0,62987.0,0.18287447]
[1728864045518,0.00182,62988.0,62987.0,0.18151447]
[1728864045959,0.00282,62988.0,62987.0,0.18851447]
[1728864046400,0.00282,62988.0,62987.0,0.02975247]
[1728864046401,0.16158,62988.0,62987.0,0.02975247]
[1728864046626,0.18458,62988.0,62987.0,0.02975247]
[1728864046845,0.18458,62988.0,62987.0,0.01464]
[1728864046846,0.20945241,62988.0,62987.0,0.01464]
[1728864047337,0.37067642,62988.0,62987.0,0.01464]
[1728864047569,0.48753607,62988.0,62987.0,0.00864]
[1728864047796,0.58873607,62988.0,62987.0,0.00164]
[1728864048009,0.68973607,62988.0,62987.0,0.00764]
[1728864048230,0.68973607,62988.0,62987.0,0.00864]
[1728864048231,0.77213607,62988.0,62987.0,0.00864]
[1728864048456,0.77013607,62988.0,62987.0,0.00864]
[1728864048669,0.77713607,62988.0,62987.0,0.00264]
[1728864048877,0.78413607,62988.0,62987.0,0.00364]
[1728864049311,0.40785241,62988.0,62987.0,0.00364]
[1728864049523,0.40085241,62988.0,62987.0,0.00264]
[1728864049947,0.40085241,62988.0,62987.0,0.01507548]
[1728864050162,0.04569241,62988.0,62987.0,0.162402]
[1728864050383,0.03769241,62988.0,62987.0,0.17383748]
[1728864050604,0.03741472,62988.0,62987.0,0.33506149]
[1728864050852,0.01254231,62988.0,62987.0,0.33506149]
[1728864051157,0.02054231,62988.0,62987.0,0.54519149]
[1728864051376,0.00054231,62988.0,62987.0,0.54319149]
[1728864051583,0.00654231,62988.0,62987.0,0.20566748]
[1728864051788,0.01154231,62988.0,62987.0,0.20566748]
[1728864051994,0.01154231,62988.0,62987.0,0.36689149]
[1728864052200,0.00554231,62988.0,62987.0,0.36589149]
[1728864052859,0.00654231,62988.0,62987.0,0.37889149]
[1728864053089,0.00154231,62988.0,62987.0,0.37889149]
[1728864053299,0.00254231,62988.0,62987.0,0.39089149]
[1728864054799,0.00254231,62988.0,62987.0,0.22966748]
[1728864055054,0.00254231,62988.0,62987.0,0.19783748]
[1728864064742,0.00254231,62988.0,62987.0,0.22966748]
[1728864068063,0.00254231,62988.0,62987.0,0.19783748]
[1728864069393,0.00254231,62988.0,62987.0,0.03907548]
[1728864069613,0.16130231,62988.0,62987.0,0.03907548]
[1728864069836,0.00254231,62988.0,62987.0,0.03901202]
[1728864070052,0.16130231,62988.0,62987.0,0.03901202]
[1728864070270,0.00254231,62988.0,62987.0,0.03901202]
[1728864070545,0.00154231,62988.0,62987.0,0.02601202]
[1728864070759,0.00154231,62988.0,62987.0,0.03401202]
[1728864070760,0.00254231,62988.0,62987.0,0.03401202]
[1728864071183,0.00154231,62988.0,62987.0,0.02601202]
[1728864071604,0.00154231,62988.0,62987.0,0.03101202]
[1728864071605,0.16030231,62988.0,62987.0,0.03101202]
[1728864071842,0.51632632,62988.0,62987.0,0.03101202]
[1728864072049,0.51632632,62988.0,62987.0,0.01864]
[1728864072264,0.51632632,62988.0,62987.0,0.02564]
[1728864072265,0.51932632,62988.0,62987.0,0.02564]
[1728864072472,0.68369603,62988.0,62987.0,0.00664]
[1728864072887,0.68369603,62988.0,62987.0,0.00964]
[1728864072888,0.68169603,62988.0,62987.0,0.00964]
[1728864073119,0.68169603,62988.0,62987.0,0.00664]
[1728864073324,0.72917867,62988.0,62987.0,0.00164]
[1728864073530,0.73417867,62988.0,62987.0,0.00164]
[1728864073743,0.83717867,62988.0,62987.0,0.00764]
[1728864074187,0.84317867,62988.0,62987.0,0.00264]
[1728864074606,0.84917867,62988.0,62987.0,0.00364]
[1728864074840,0.87405202,62988.0,62987.0,0.00364]
[1728864076179,0.87205202,62988.0,62987.0,0.00364]
[1728864076397,0.82656938,62988.0,62987.0,0.00364]
[1728864076603,0.89579334,62988.0,62987.0,0.00364]
[1728864076806,0.82456938,62988.0,62987.0,0.00364]
[1728864077082,0.87206516,62988.0,62987.0,0.00364]
[1728864077319,0.87406501,62988.0,62987.0,0.00364]
[1728864077561,0.87206501,62988.0,62987.0,0.00364]
[1728864077775,0.82456938,62988.0,62987.0,0.00364]
[1728864077989,0.87406625,62988.0,62987.0,0.00364]
[1728864078219,0.82456938,62988.0,62987.0,0.00364]
[1728864078447,0.87206674,62988.0,62987.0,0.00364]
[1728864079145,0.82456938,62988.0,62987.0,0.00364]
[1728864079398,0.82656938,62988.0,62987.0,0.00364]
[1728864079695,0.66319967,62988.0,62987.0,0.00364]
[1728864080132,0.71069951,62988.0,62987.0,0.00364]
[1728864081372,0.66319967,62988.0,62987.0,0.00364]
[1728864081923,0.63832632,62988.0,62987.0,0.00364]
[1728864082364,0.70959571,62988.0,62987.0,0.00364]
[1728864083429,0.70962359,62988.0,62987.0,0.00364]
[1728864084318,0.80976748,62988.0,62987.0,0.00364]
[1728864084514,0.63832632,62988.0,62987.0,0.00364]
[1728864084714,0.7345116,62988.0,62987.0,0.00364]
[1728864084942,0.92974331,62988.0,62987.0,0.00364]
[1728864085136,0.92577427,62988.0,62987.0,0.00364]
[1728864085344,0.83074841,62988.0,62987.0,0.00364]
[1728864085551,0.92785729,62988.0,62987.0,0.00364]
[1728864085762,0.83074841,62988.0,62987.0,0.00364]
[1728864085968,0.73056046,62988.0,62987.0,0.00364]
[1728864086170,0.92588712,62988.0,62987.0,0.00364]
[1728864086379,0.73055854,62988.0,62987.0,0.00364]
[1728864086792,0.65923059,62988.0,62987.0,0.00364]
[1728864087002,0.73055689,62988.0,62987.0,0.00364]
[1728864087210,0.66123059,62988.0,62987.0,0.00364]
[1728864087440,0.83278235,62988.0,62987.0,0.00364]
[1728864087665,0.92788409,62988.0,62987.0,0.00364]
[1728864088337,0.92588409,62988.0,62987.0,0.00364]
[1728864089722,0.92788409,62988.0,62987.0,0.00364]
[1728864090463,1.09780242,62988.0,62987.0,0.00364]
[1728864090666,0.97892525,62988.0,62987.0,0.00364]
[1728864091413,1.14445498,62988.0,62987.0,0.00364]
[1728864091867,1.11958167,62988.0,62987.0,0.00364]
[1728864093208,0.95249658,62988.0,62987.0,0.00364]
[1728864093443,0.95449658,62988.0,62987.0,0.00364]
[1728864094731,0.97937144,62988.0,62987.0,0.00364]
[1728864095261,1.10098126,62988.0,62987.0,0.00364]
[1728864095499,0.98213447,62988.0,62987.0,0.00364]
[1728864095971,1.10097462,62988.0,62987.0,0.00364]
[1728864096417,0.98213447,62988.0,62987.0,0.00364]
[1728864096666,1.10096786,62988.0,62987.0,0.00364]
[1728864098270,0.98213447,62988.0,62987.0,0.00364]
[1728864098492,1.10098551,62988.0,62987.0,0.00364]
[1728864099003,1.10098612,62988.0,62987.0,0.00364]
[1728864099229,1.26689121,62988.0,62987.0,0.00364]
[1728864099451,1.14803956,62988.0,62987.0,0.00364]
[1728864101848,1.14803956,62988.0,62986.0,0.00164]
[1728864101849,0.462062,62987.0,62986.0,0.00164]
[1728864102073,1.09848089,62987.0,62986.0,0.00164]
[1728864102308,1.19528717,62987.0,62986.0,0.00164]
[1728864103045,0.96083212,62987.0,62986.0,0.00164]
[1728864103273,1.20028717,62987.0,62986.0,0.00164]
[1728864104303,0.96083212,62987.0,62986.0,0.00164]
[1728864104554,0.96683212,62987.0,62986.0,0.00264]
[1728864104807,1.46683212,62987.0,62986.0,0.00264]
[1728864105033,1.70628717,62987.0,62986.0,0.00264]
[1728864105313,1.7055422,62987.0,62986.0,0.00264]
[1728864105553,1.54417249,62987.0,62986.0,0.00264]
[1728864105785,1.87598267,62987.0,62986.0,0.00264]
[1728864106276,1.90085912,62987.0,62986.0,0.00264]
[1728864108794,1.63857898,62987.0,62986.0,0.00264]
[1728864109654,1.7350649,62987.0,62986.0,0.00264]
[1728864109863,1.32506755,62987.0,62986.0,0.00264]
[1728864110075,1.49593731,62987.0,62986.0,0.00264]
[1728864110289,1.73515498,62987.0,62986.0,0.00264]
[1728864110941,1.89652469,62987.0,62986.0,0.00264]
[1728864111165,1.89452469,62987.0,62986.0,0.00264]
[1728864111378,1.89459916,62987.0,62986.0,0.00264]
[1728864111592,1.89475136,62987.0,62986.0,0.00264]
[1728864111805,1.86987491,62987.0,62986.0,0.00264]
[1728864112017,1.7732156,62987.0,62986.0,0.00264]
[1728864112235,2.01275154,62987.0,62986.0,0.00264]
[1728864112672,1.86996651,62987.0,62986.0,0.00264]
[1728864112883,1.87196651,62987.0,62986.0,0.00264]
[1728864114668,1.87207542,62987.0,62986.0,0.00264]
[1728864114886,1.89495108,62987.0,62986.0,0.00264]
[1728864115108,1.89695108,62987.0,62986.0,0.00264]
[1728864116063,1.79665108,62987.0,62986.0,0.00264]
[1728864117364,1.72165108,62987.0,62986.0,0.00264]
[1728864119344,1.5620967,62987.0,62986.0,0.00264]
[1728864119765,1.40072699,62987.0,62986.0,0.00264]
[1728864119977,1.16028618,62987.0,62986.0,0.00264]
[1728864121265,1.2982978,62987.0,62986.0,0.00264]
[1728864121484,1.11251789,62987.0,62986.0,0.00264]
[1728864122609,0.96960809,62987.0,62986.0,0.00264]
[1728864125336,0.68284609,62987.0,62986.0,0.00264]
[1728864125572,0.84160809,62987.0,62986.0,0.00264]
[1728864125790,0.93692877,62987.0,62986.0,0.01151182]
[1728864126041,0.77816677,62987.0,62986.0,0.17027682]
[1728864126272,0.67184609,62987.0,62986.0,0.16927682]
[1728864126713,0.67184609,62987.0,62986.0,0.17227682]
[1728864126929,0.76716677,62987.0,62986.0,0.17127682]
[1728864127138,0.76716677,62987.0,62986.0,0.16927682]
[1728864127139,0.67184609,62987.0,62986.0,0.16927682]
[1728864127375,0.5,62987.0,62986.0,0.01351182]
[1728864127598,0.00082,62987.0,62986.0,0.01751182]
[1728864128306,0.25490268,62987.0,62986.0,0.01751182]
[1728864128745,0.42727623,62987.0,62986.0,0.01751182]
[1728864128963,0.42727623,62987.0,62986.0,0.00864]
[1728864129177,0.35495555,62987.0,62986.0,0.00864]
[1728864129469,0.47410857,62987.0,62986.0,0.00864]
[1728864129683,0.49898224,62987.0,62986.0,0.00864]
[1728864129899,0.64690799,62987.0,62986.0,0.00864]
[1728864130110,0.37982922,62987.0,62986.0,0.00564]
[1728864130324,0.38182922,62987.0,62986.0,0.00164]
[1728864130781,0.48582922,62987.0,62986.0,0.00164]
[1728864130996,0.49082922,62987.0,62986.0,0.00264]
[1728864131209,0.48382922,62987.0,62986.0,0.00164]
[1728864131638,0.49125084,62987.0,62986.0,0.00264]
[1728864131868,0.46637717,62987.0,62986.0,0.00264]
[1728864132298,0.46437717,62987.0,62986.0,0.00264]
[1728864132561,0.47137717,62987.0,62986.0,0.00364]
[1728864132776,0.76479398,62987.0,62986.0,0.00264]
[1728864132987,0.76479398,62987.0,62986.0,0.00164]
[1728864132988,0.61485807,62987.0,62986.0,0.00164]
[1728864133223,0.62185807,62987.0,62986.0,0.00264]
[1728864133438,0.76379398,62987.0,62986.0,0.00164]
[1728864133879,0.62385807,62987.0,62986.0,0.00264]
[1728864134096,0.62385807,62987.0,62986.0,0.00164]
[1728864134310,0.62385807,62987.0,62986.0,0.00364]
[1728864134311,0.47337717,62987.0,62986.0,0.00364]
[1728864134568,0.48137717,62987.0,62986.0,0.00364]
[1728864134784,0.50625141,62987.0,62986.0,0.00364]
[1728864136531,0.50825141,62987.0,62986.0,0.00364]
[1728864136744,0.50625141,62987.0,62986.0,0.00364]
[1728864140022,0.64620644,62987.0,62986.0,0.00364]
[1728864140663,0.64631708,62987.0,62986.0,0.00364]
[1728864140921,0.50636205,62987.0,62986.0,0.00364]
[1728864141787,0.48148781,62987.0,62986.0,0.00364]
[1728864143539,0.62442092,62987.0,62986.0,0.00364]
[1728864144180,0.72701182,62987.0,62986.0,0.00364]
[1728864144391,1.03131464,62987.0,62986.0,0.00364]
[1728864144609,0.88838153,62987.0,62986.0,0.00364]
[1728864144822,1.17436106,62987.0,62986.0,0.00364]
[1728864145311,1.17375172,62987.0,62986.0,0.00364]
[1728864145529,1.17375172,62987.0,62986.0,9.586e-05]
[1728864145968,1.23149457,62987.0,62986.0,9.586e-05]
[1728864147520,1.02268271,62983.0,62982.0,0.00164]
[1728864147731,1.03368271,62983.0,62982.0,0.00264]
[1728864147941,1.0878758,62983.0,62982.0,0.00264]
[1728864149037,1.0988758,62983.0,62982.0,0.00264]
[1728864149270,0.007,62976.0,62975.0,0.00164]
[1728864149510,0.95782754,62976.0,62975.0,0.00164]
[1728864149748,1.45782754,62976.0,62975.0,0.00164]
[1728864149961,1.48270741,62976.0,62975.0,0.00164]
[1728864150180,1.72252246,62976.0,62975.0,0.00164]
[1728864150390,1.88389217,62976.0,62975.0,0.00164]
[1728864150810,1.89789217,62976.0,62975.0,0.00164]
[1728864151234,1.90989217,62976.0,62975.0,0.00164]
[1728864151897,1.8850123,62976.0,62975.0,0.00164]
[1728864152107,1.8710123,62976.0,62975.0,0.00164]
[1728864152326,1.8850123,62976.0,62975.0,0.00164]
[1728864152614,1.8710123,62976.0,62975.0,0.00164]
[1728864153048,1.8730123,62976.0,62975.0,0.00164]
[1728864153267,1.8860123,62976.0,62975.0,0.00164]
[1728864153713,1.8730123,62976.0,62975.0,0.00164]
[1728864154149,1.8870123,62976.0,62975.0,0.00164]
[1728864154834,1.91189258,62976.0,62975.0,0.00164]
[1728864155946,1.90835105,62976.0,62975.0,0.00164]
[1728864157595,2.05107991,62976.0,62975.0,0.00164]
[1728864157815,1.90635105,62976.0,62975.0,0.00164]
[1728864158030,1.88771008,62976.0,62975.0,0.00164]
[1728864158248,1.64996092,62976.0,62975.0,0.00164]
[1728864160656,1.50723218,62976.0,62975.0,0.00164]
[1728864161367,1.50923218,62976.0,62975.0,0.00164]
[1728864161611,1.67060189,62976.0,62975.0,0.00164]
[1728864161845,1.64572161,62976.0,62975.0,0.00164]
[1728864162325,1.64848506,62976.0,62975.0,0.00164]
[1728864162543,1.7892138,62976.0,62975.0,0.00164]
[1728864162771,1.64648506,62976.0,62975.0,0.00164]
[1728864163230,1.64848506,62976.0,62975.0,0.00164]
[1728864163656,1.64648506,62976.0,62975.0,0.00164]
[1728864163889,1.64629504,62976.0,62975.0,0.00164]
[1728864164956,1.67117495,62976.0,62975.0,0.00164]
[1728864165613,1.67317495,62976.0,62975.0,0.00164]
[1728864166718,1.6704115,62976.0,62975.0,0.00164]
[1728864170006,1.72807038,62976.0,62975.0,0.00164]
[1728864170889,1.61623241,62976.0,62975.0,0.00164]
[1728864171939,1.5913525,62976.0,62975.0,0.00164]
[1728864172149,1.5893525,62976.0,62975.0,0.00164]
[1728864173262,1.58945127,62976.0,62975.0,0.00164]
[1728864174951,1.61433085,62976.0,62975.0,0.00164]
[1728864175185,1.14762317,62976.0,62975.0,0.00164]
[1728864175486,1.25946114,62976.0,62975.0,0.00164]
[1728864175916,1.26146114,62976.0,62975.0,0.00164]
[1728864176378,1.28446114,62976.0,62975.0,0.00164]
[1728864176595,1.44583085,62976.0,62975.0,0.00164]
[1728864177871,1.44609233,62976.0,62975.0,0.00164]
[1728864179661,1.5579303,62976.0,62975.0,0.00164]
[1728864179883,1.6345303,62976.0,62975.0,0.00164]
[1728864180111,1.52269233,62976.0,62975.0,0.00164]
[1728864180778,1.52069233,62976.0,62975.0,0.00164]
[1728864181244,1.24738227,62976.0,62975.0,0.00164]
[1728864181466,1.35922024,62976.0,62975.0,0.00164]
[1728864181696,1.00955826,62976.0,62975.0,0.00164]
[1728864181914,0.59937773,62976.0,62975.0,0.00164]
[1728864182156,0.68679,62976.0,62975.0,0.00164]
[1728864182374,0.73437435,62976.0,62975.0,0.00164]
[1728864182588,0.68679,62976.0,62975.0,0.00164]
[1728864183045,0.72037435,62976.0,62975.0,0.00164]
[1728864183336,0.72037435,62976.0,62975.0,0.01065404]
[1728864183557,0.67679,62976.0,62975.0,0.00164]
[1728864183988,0.65879,62976.0,62975.0,0.00164]
[1728864184200,0.66379,62976.0,62975.0,0.00164]
[1728864184413,0.71137435,62976.0,62975.0,0.00164]
[1728864184839,0.73825015,62976.0,62975.0,0.00164]
[1728864185518,0.6906658,62976.0,62975.0,0.00164]
[1728864186007,0.7382678,62976.0,62975.0,0.00164]
[1728864186655,0.73827233,62976.0,62975.0,0.00164]
[1728864186871,0.7620688,62976.0,62975.0,0.00164]
[1728864187331,1.0458319,62976.0,62975.0,0.00164]
[1728864187805,0.5458319,62976.0,62975.0,0.00164]
[1728864188020,0.66487755,62976.0,62975.0,0.00164]
[1728864188236,0.5388319,62976.0,62975.0,0.00164]
[1728864188466,0.5428319,62976.0,62975.0,0.00164]
[1728864188683,0.83776987,62976.0,62975.0,0.00164]
[1728864188902,0.7259319,62976.0,62975.0,0.00164]
[1728864189116,0.7319319,62976.0,62975.0,0.00164]
[1728864189545,0.7279319,62976.0,62975.0,0.00164]
[1728864189764,0.7359319,62976.0,62975.0,0.00164]
[1728864189975,0.7339319,62976.0,62975.0,0.00164]
[1728864190643,0.89515591,62976.0,62975.0,0.00164]
[1728864190930,1.00299388,62976.0,62975.0,0.00164]
[1728864191147,1.11019388,62976.0,62975.0,0.00164]
[1728864191366,0.62311895,62976.0,62975.0,0.00164]
[1728864191589,0.59742504,62976.0,62975.0,0.00164]
[1728864191806,0.43958639,62976.0,62975.0,0.00164]
[1728864192042,0.43358639,62976.0,62975.0,0.00164]
[1728864192265,0.54142436,62976.0,62975.0,0.00164]
[1728864192477,0.56542436,62976.0,62975.0,0.00164]
[1728864192951,0.29479639,62976.0,62975.0,0.00164]
[1728864193182,0.29479639,62976.0,62975.0,0.01067588]
[1728864193183,0.17079639,62976.0,62975.0,0.01067588]
[1728864193430,0.004,62976.0,62975.0,0.00164]
[1728864193662,0.05163799,62976.0,62975.0,0.01067588]
[1728864194086,0.004,62976.0,62975.0,0.01067588]
[1728864194556,0.006,62976.0,62975.0,0.01067588]
[1728864194785,0.006,62976.0,62975.0,0.16946688]
[1728864195006,0.04763799,62977.0,62975.0,0.16946688]
[1728864195223,0.04763799,62977.0,62975.0,0.17046688]
[1728864195656,0.18365942,62978.0,62975.0,0.17046688]
[1728864195657,0.07251241,62978.0,62975.0,0.32925788]
[1728864195881,0.23129941,62978.0,62975.0,0.01167588]
[1728864196115,0.23129941,62978.0,62975.0,0.01067588]
[1728864196554,0.18365942,62978.0,62975.0,0.16946888]
[1728864196782,0.23129741,62978.0,62975.0,0.01067588]
[1728864196996,0.02487442,62978.0,62977.0,0.238088]
[1728864197444,0.02487442,62978.0,62977.0,0.24711888]
[1728864197886,0.02687442,62978.0,62977.0,0.24711888]
[1728864198115,0.02487442,62978.0,62977.0,0.24711888]
[1728864198628,0.02687442,62978.0,62977.0,0.24711888]
[1728864198858,0.02487442,62978.0,62977.0,0.24711888]
[1728864199069,0.02687442,62978.0,62977.0,0.24711888]
[1728864200392,0.02687442,62978.0,62977.0,0.08833088]
[1728864201313,0.02687442,62978.0,62977.0,0.08933088]
[1728864202016,0.002,62978.0,62977.0,0.08933088]
[1728864203822,0.160785,62978.0,62977.0,0.08933088]
[1728864204896,0.18565968,62978.0,62977.0,0.08933088]
[1728864205746,0.18565968,62978.0,62977.0,0.01003088]
[1728864205968,0.02687468,62978.0,62977.0,0.01003088]
[1728864206424,0.18565968,62978.0,62977.0,0.01003088]
[1728864206921,0.02687468,62978.0,62977.0,0.01003088]
[1728864207170,0.18565968,62978.0,62977.0,0.01003088]
[1728864208122,0.02687468,62978.0,62977.0,0.01003088]
[1728864208862,0.18565968,62978.0,62977.0,0.01003088]
[1728864210384,0.02687468,62978.0,62977.0,0.01003088]
[1728864211124,0.18565968,62978.0,62977.0,0.01003088]
[1728864211417,0.02687468,62978.0,62977.0,0.01003088]
[1728864211937,0.02687468,62978.0,62977.0,0.16881888]
[1728864212181,0.002,62978.0,62977.0,0.01003088]
[1728864212426,0.002,62978.0,62977.0,0.16881888]
[1728864213416,0.002,62978.0,62977.0,0.01003088]
[1728864214091,0.15878,62980.0,62977.0,0.00903088]
[1728864214304,0.158783,62979.0,62977.0,0.00903088]
[1728864214541,0.160785,62978.0,62977.0,0.002]
[1728864214967,0.159785,62978.0,62977.0,0.002]
[1728864215179,0.18365942,62978.0,62977.0,0.00886225]
[1728864215394,0.158788,62977.0,62975.0,0.03349]
[1728864215600,0.02487442,62978.0,62977.0,0.00886225]
[1728864215812,0.18365942,62978.0,62976.0,0.00886475]
[1728864216018,0.02487442,62978.0,62977.0,0.00886225]
[1728864216465,0.02487442,62978.0,62976.0,0.15879]
[1728864216676,0.02487442,62978.0,62977.0,0.17065025]
[1728864216892,0.02487442,62978.0,62977.0,0.00886225]
[1728864217101,0.02587442,62978.0,62977.0,0.01186225]
[1728864217327,0.02687442,62978.0,62977.0,0.004]
[1728864217706,0.02687442,62978.0,62977.0,0.00986225]
[1728864217709,0.02787442,62978.0,62977.0,0.00986225]